fUST/lending_fUST_20250326
["ID","MTS","AMOUNT","RATE_DAILY","PERIOD"]
[356675953,1742940701046,-500.0,0.00021917,2]
[356675954,1742940701058,-500.0,0.00021917,2]
[356675955,1742940701070,-528.17234098,0.00021917,2]
[356675956,1742940701081,-459.0,0.00021918,2]
[356675957,1742940701093,-459.0,0.00021918,2]
[356675958,1742940701105,-459.0,0.00021918,2]
[356675959,1742940701117,-459.0,0.00021918,2]
[356675960,1742940701130,-459.0,0.00021918,2]
[356675961,1742940701142,-459.0,0.00021918,2]
[356675962,1742940701154,-459.0,0.00021918,2]
[356675963,1742940701166,-459.0,0.00021918,2]
[356675964,1742940701178,-459.0,0.00021918,2]
[356675965,1742940701190,-459.0,0.00021918,2]
[356675966,1742940701202,-459.0,0.00021918,2]
[356675967,1742940701213,-459.0,0.00021918,2]
[356675968,1742940701224,-459.0,0.00021918,2]
[356675969,1742940701235,-459.0,0.00021918,2]
[356675970,1742940701248,-459.0,0.00021918,2]
[356675971,1742940701259,-459.0,0.00021918,2]
[356675972,1742940701270,-459.0,0.00021918,2]
[356675973,1742940701282,-459.0,0.00021918,2]
[356675974,1742940701293,-459.0,0.00021918,2]
[356675975,1742940701305,-459.0,0.00021918,2]
[356675976,1742940701316,-459.0,0.00021918,2]
[356675977,1742940701328,-459.0,0.00021918,2]
[356675978,1742940701339,-459.0,0.00021918,2]
[356675979,1742940701349,-459.0,0.00021918,2]
[356675980,1742940701360,-459.0,0.00021918,2]
[356675981,1742940701370,-459.0,0.00021918,2]
[356675982,1742940701379,-459.0,0.00021918,2]
[356675983,1742940701388,-459.0,0.00021918,2]
[356675984,1742940701397,-459.0,0.00021918,2]
[356675985,1742940701406,-459.0,0.00021918,2]
[356675986,1742940701415,-459.0,0.00021918,2]
[356675987,1742940701423,-459.0,0.00021918,2]
[356675988,1742940701432,-459.0,0.00021918,2]
[356675989,1742940701441,-459.0,0.00021918,2]
[356675990,1742940701450,-459.0,0.00021918,2]
[356675991,1742940701459,-459.0,0.00021918,2]
[356675992,1742940701468,-459.0,0.00021918,2]
[356675993,1742940701477,-459.0,0.00021918,2]
[356675994,1742940701486,-459.0,0.00021918,2]
[356675995,1742940701495,-459.0,0.00021918,2]
[356675996,1742940701504,-459.0,0.00021918,2]
[356675997,1742940701513,-459.0,0.00021918,2]
[356675998,1742940701522,-459.0,0.00021918,2]
[356675999,1742940701531,-459.0,0.00021918,2]
[356676000,1742940701540,-459.0,0.00021918,2]
[356676001,1742940701550,-459.0,0.00021918,2]
[356676002,1742940701559,-459.0,0.00021918,2]
[356676003,1742940701568,-459.0,0.00021918,2]
[356676004,1742940701577,-459.0,0.00021918,2]
[356676005,1742940701589,-459.0,0.00021918,2]
[356676006,1742940701599,-459.0,0.00021918,2]
[356676007,1742940701609,-459.0,0.00021918,2]
[356676008,1742940701619,-459.0,0.00021918,2]
[356676009,1742940701629,-459.0,0.00021918,2]
[356676010,1742940701639,-459.0,0.00021918,2]
[356676011,1742940701650,-459.0,0.00021918,2]
[356676012,1742940701662,-459.0,0.00021918,2]
[356676013,1742940701672,-459.0,0.00021918,2]
[356676014,1742940701681,-459.0,0.00021918,2]
[356676015,1742940701692,-459.0,0.00021918,2]
[356676016,1742940701702,-459.0,0.00021918,2]
[356676017,1742940701712,-459.0,0.00021918,2]
[356676018,1742940701722,-459.0,0.00021918,2]
[356676019,1742940701731,-459.0,0.00021918,2]
[356676020,1742940701740,-459.0,0.00021918,2]
[356676021,1742940701750,-459.0,0.00021918,2]
[356676022,1742940701760,-459.0,0.00021918,2]
[356676023,1742940701769,-459.0,0.00021918,2]
[356676024,1742940701778,-459.0,0.00021918,2]
[356676025,1742940701788,-459.0,0.00021918,2]
[356676026,1742940701798,-459.0,0.00021918,2]
[356676027,1742940701807,-459.0,0.00021918,2]
[356676028,1742940701816,-459.0,0.00021918,2]
[356676029,1742940701825,-459.0,0.00021918,2]
[356676030,1742940701834,-459.0,0.00021918,2]
[356676031,1742940701844,-459.0,0.00021918,2]
[356676032,1742940701854,-459.0,0.00021918,2]
[356676033,1742940701864,-459.0,0.00021918,2]
[356676034,1742940701873,-459.0,0.00021918,2]
[356676035,1742940701883,-459.0,0.00021918,2]
[356676036,1742940701892,-459.0,0.00021918,2]
[356676037,1742940701902,-459.0,0.00021918,2]
[356676038,1742940701911,-459.0,0.00021918,2]
[356676039,1742940701921,-459.0,0.00021918,2]
[356676040,1742940701930,-459.0,0.00021918,2]
[356676041,1742940701939,-459.0,0.00021918,2]
[356676042,1742940701949,-459.0,0.00021918,2]
[356676043,1742940701958,-459.0,0.00021918,2]
[356676044,1742940701967,-459.0,0.00021918,2]
[356676045,1742940701977,-459.0,0.00021918,2]
[356676046,1742940701987,-459.0,0.00021918,2]
[356676047,1742940701996,-459.0,0.00021918,2]
[356676048,1742940702006,-459.0,0.00021918,2]
[356676049,1742940702016,-459.0,0.00021918,2]
[356676050,1742940702026,-459.0,0.00021918,2]
[356676051,1742940702036,-459.0,0.00021918,2]
[356676052,1742940702046,-459.0,0.00021918,2]
[356676053,1742940702056,-279.0,0.00021918,2]
[356676054,1742940702067,-279.0,0.00021918,2]
[356676055,1742940702077,-279.0,0.00021918,2]
[356676056,1742940702087,-279.0,0.00021918,2]
[356676057,1742940702097,-279.0,0.00021918,2]
[356676058,1742940702108,-279.0,0.00021918,2]
[356676059,1742940702119,-279.0,0.00021918,2]
[356676060,1742940702130,-279.0,0.00021918,2]
[356676061,1742940702140,-279.0,0.00021918,2]
[356676062,1742940702150,-279.0,0.00021918,2]
[356676063,1742940702159,-279.0,0.00021918,2]
[356676064,1742940702169,-279.0,0.00021918,2]
[356676065,1742940702179,-279.0,0.00021918,2]
[356676066,1742940702189,-279.0,0.00021918,2]
[356676067,1742940702198,-279.0,0.00021918,2]
[356676068,1742940702207,-279.0,0.00021918,2]
[356676069,1742940702216,-279.0,0.00021918,2]
[356676070,1742940702226,-279.0,0.00021918,2]
[356676071,1742940702237,-279.0,0.00021918,2]
[356676072,1742940702246,-279.0,0.00021918,2]
[356676073,1742940702257,-279.0,0.00021918,2]
[356676074,1742940702267,-279.0,0.00021918,2]
[356676075,1742940702276,-279.0,0.00021918,2]
[356676076,1742940702285,-279.0,0.00021918,2]
[356676077,1742940702295,-279.0,0.00021918,2]
[356676078,1742940702305,-279.0,0.00021918,2]
[356676079,1742940702314,-279.0,0.00021918,2]
[356676080,1742940702324,-279.0,0.00021918,2]
[356676081,1742940702334,-279.0,0.00021918,2]
[356676082,1742940702344,-279.0,0.00021918,2]
[356676083,1742940702354,-279.0,0.00021918,2]
[356676084,1742940702363,-279.0,0.00021918,2]
[356676085,1742940702373,-279.0,0.00021918,2]
[356676086,1742940702382,-279.0,0.00021918,2]
[356676087,1742940702391,-279.0,0.00021918,2]
[356676088,1742940702401,-279.0,0.00021918,2]
[356676089,1742940702411,-279.0,0.00021918,2]
[356676090,1742940702420,-279.0,0.00021918,2]
[356676091,1742940702429,-279.0,0.00021918,2]
[356676092,1742940702439,-279.0,0.00021918,2]
[356676093,1742940702448,-279.0,0.00021918,2]
[356676094,1742940702458,-279.0,0.00021918,2]
[356676095,1742940702467,-279.0,0.00021918,2]
[356676096,1742940702476,-279.0,0.00021918,2]
[356676097,1742940702486,-279.0,0.00021918,2]
[356676098,1742940702496,-279.0,0.00021918,2]
[356676099,1742940702505,-279.0,0.00021918,2]
[356676100,1742940702514,-279.0,0.00021918,2]
[356676101,1742940702524,-279.0,0.00021918,2]
[356676102,1742940702534,-279.0,0.00021918,2]
[356676103,1742940702543,-279.0,0.00021918,2]
[356676104,1742940702552,-279.0,0.00021918,2]
[356676105,1742940702562,-279.0,0.00021918,2]
[356676106,1742940702571,-279.0,0.00021918,2]
[356676107,1742940702582,-279.0,0.00021918,2]
[356676108,1742940702591,-279.0,0.00021918,2]
[356676109,1742940702601,-279.0,0.00021918,2]
[356676110,1742940703109,-279.0,0.00021918,2]
[356676111,1742940703121,-279.0,0.00021918,2]
[356676112,1742940703132,-279.0,0.00021918,2]
[356676113,1742940703142,-279.0,0.00021918,2]
[356676114,1742940703153,-279.0,0.00021918,2]
[356676115,1742940703163,-279.0,0.00021918,2]
[356676116,1742940703173,-279.0,0.00021918,2]
[356676117,1742940703183,-279.0,0.00021918,2]
[356676118,1742940703193,-279.0,0.00021918,2]
[356676119,1742940703203,-279.0,0.00021918,2]
[356676120,1742940703212,-279.0,0.00021918,2]
[356676121,1742940703222,-279.0,0.00021918,2]
[356676122,1742940703232,-279.0,0.00021918,2]
[356676123,1742940703241,-279.0,0.00021918,2]
[356676124,1742940703251,-279.0,0.00021918,2]
[356676125,1742940703261,-279.0,0.00021918,2]
[356676126,1742940703271,-279.0,0.00021918,2]
[356676127,1742940703281,-279.0,0.00021918,2]
[356676128,1742940703291,-279.0,0.00021918,2]
[356676129,1742940703301,-279.0,0.00021918,2]
[356676130,1742940703310,-279.0,0.00021918,2]
[356676131,1742940703320,-279.0,0.00021918,2]
[356676132,1742940703329,-279.0,0.00021918,2]
[356676133,1742940703339,-279.0,0.00021918,2]
[356676134,1742940703349,-279.0,0.00021918,2]
[356676135,1742940703360,-279.0,0.00021918,2]
[356676136,1742940703371,-279.0,0.00021918,2]
[356676137,1742940703381,-279.0,0.00021918,2]
[356676138,1742940703391,-279.0,0.00021918,2]
[356676139,1742940703402,-279.0,0.00021918,2]
[356676140,1742940703412,-279.0,0.00021918,2]
[356676141,1742940703422,-279.0,0.00021918,2]
[356676142,1742940703431,-279.0,0.00021918,2]
[356676143,1742940703441,-279.0,0.00021918,2]
[356676144,1742940703451,-279.0,0.00021918,2]
[356676145,1742940703461,-279.0,0.00021918,2]
[356676146,1742940703470,-279.0,0.00021918,2]
[356676147,1742940703480,-279.0,0.00021918,2]
[356676148,1742940703489,-279.0,0.00021918,2]
[356676149,1742940703499,-279.0,0.00021918,2]
[356676150,1742940703508,-151.0,0.00021918,2]
[356676151,1742940703518,-151.0,0.00021918,2]
[356676152,1742940703527,-151.0,0.00021918,2]
[356676153,1742940703537,-151.0,0.00021918,2]
[356676154,1742940703546,-151.0,0.00021918,2]
[356676155,1742940703556,-151.0,0.00021918,2]
[356676156,1742940703565,-201.18571,0.00021918,2]
[356676157,1742940703574,-3043.5245956,0.00022,10]
[356676158,1742940703586,-346.97007412,0.00022,2]
[356676159,1742940703596,-1000.0,0.00022,2]
[356676160,1742940703605,-163.43730369,0.00022,10]
[356676161,1742940703615,-250.0,0.00022,120]
[356676162,1742940703626,-494.0,0.00022,9]
[356676163,1742940703635,-2000.0,0.00022,4]
[356676164,1742940703645,-289.9407547,0.000221,2]
[356676165,1742940703656,-36640.14996482,0.00022452,3]
[356676166,1742940703665,-5000.0,0.00022669,2]
[356676167,1742940703675,-5000.0,0.00022669,2]
[356676168,1742940703684,-5639.59774536,0.00022708,2]
[356676169,1742940703693,-184.3569775,0.0002271,2]
[356676170,1742940703703,-3000.0,0.0002274,2]
[356676171,1742940703712,-245.69421865,0.00023,2]
[356676172,1742940703722,-160.0,0.00023,3]
[356676173,1742940703732,-160.0,0.00023,3]
[356676174,1742940703742,-160.0,0.00023,3]
[356676175,1742940703752,-418.3522718,0.00023,3]
[356676176,1742940703761,-153.0,0.00023,2]
[356676177,1742940703771,-2000.0,0.00023,4]
[356676178,1742940703780,-36640.14996482,0.00023072,3]
[356676179,1742940703791,-1000.0,0.00023187,2]
[356676180,1742940703800,-300.0,0.00023187,2]
[356676181,1742940703810,-200.0,0.00023277,120]
[356676182,1742940703819,-150.0,0.00023287,2]
[356676183,1742940703830,-374.78,0.000233,31]
[356676184,1742940703839,-374.78,0.000233,31]
[356676185,1742940703849,-374.78,0.000233,31]
[356676186,1742940703860,-374.78,0.000233,31]
[356676187,1742940703870,-374.78,0.000233,31]
[356676188,1742940703879,-374.78,0.000233,31]
[356676189,1742940703889,-374.78,0.000233,31]
[356676190,1742940703899,-374.78,0.000233,31]
[356676191,1742940703908,-374.78,0.000233,31]
[356676192,1742940703918,-374.78,0.000233,31]
[356676193,1742940703927,-374.78,0.000233,31]
[356676194,1742940703937,-374.78,0.000233,31]
[356676195,1742940703946,-374.78,0.000233,31]
[356676196,1742940703956,-374.78,0.000233,31]
[356676197,1742940703965,-374.78,0.000233,31]
[356676198,1742940703975,-374.78,0.000233,31]
[356676199,1742940703984,-374.78,0.000233,31]
[356676200,1742940703993,-374.78,0.000233,31]
[356676201,1742940704003,-374.78,0.000233,31]
[356676202,1742940704012,-374.78,0.000233,31]
[356676203,1742940704022,-374.78,0.000233,31]
[356676204,1742940704031,-374.78,0.000233,31]
[356676205,1742940704041,-374.78,0.000233,31]
[356676206,1742940704050,-374.78,0.000233,31]
[356676207,1742940704060,-4427.0,0.00023306,2]
[356676208,1742940704069,-494.0,0.000235,10]
[356676209,1742940704079,-36640.14996482,0.00023693,3]
[356676210,1742940704088,-200.0,0.0002371,120]
[356676211,1742940704098,-3000.0,0.00023836,2]
[356676212,1742940704109,-200.0,0.00023874,120]
[356676213,1742940704118,-1000.0,0.00024,5]
[356676214,1742940704128,-1667.70429002,0.00024,2]
[356676215,1742940704139,-1000.0,0.00024,120]
[356676216,1742940704148,-1010.01805203,0.00024,2]
[356676217,1742940704158,-250.0,0.00024,120]
[356676218,1742940704168,-418.3522718,0.00024,3]
[356676219,1742940704177,-2000.0,0.00024,4]
[356676220,1742940704187,-200.0,0.0002409,120]
[356676221,1742940704196,-1897.37,0.00024109,2]
[356676222,1742940704205,-1897.37,0.00024109,2]
[356676223,1742940704215,-1897.37,0.00024109,2]
[356676224,1742940704224,-1897.37,0.00024109,2]
[356676225,1742940704233,-1897.37,0.00024109,2]
[356676226,1742940704243,-1897.37,0.00024109,2]
[356676227,1742940704252,-1897.37,0.00024109,2]
[356676228,1742940704261,-1897.37,0.00024109,2]
[356676229,1742940704271,-1897.37,0.00024109,2]
[356676230,1742940704280,-1897.37,0.00024109,2]
[356676231,1742940704289,-1897.37,0.00024109,2]
[356676232,1742940704298,-1897.37,0.00024109,2]
[356676233,1742940704307,-1897.37,0.00024109,2]
[356676234,1742940704317,-1897.37,0.00024109,2]
[356676235,1742940704326,-1897.37,0.00024109,2]
[356676236,1742940704335,-1897.37,0.00024109,2]
[356676237,1742940704345,-1897.37,0.00024109,2]
[356676238,1742940704354,-1897.37,0.00024109,2]
[356676239,1742940704363,-1897.37,0.00024109,2]
[356676240,1742940704374,-1897.37,0.00024109,2]
[356676241,1742940704383,-1897.37,0.00024109,2]
[356676242,1742940704392,-1897.37,0.00024109,2]
[356676243,1742940704402,-1897.37,0.00024109,2]
[356676244,1742940704411,-1897.40646048,0.00024109,2]
[356676245,1742940704421,-154.0,0.00024164,2]
[356676246,1742940704431,-36640.14996482,0.00024314,3]
[356676247,1742940704440,-541.0,0.00024358,2]
[356676248,1742940704450,-1915.0,0.00024358,2]
[356676249,1742940704459,-2262.0,0.00024358,2]
[356676250,1742940704468,-400.0,0.00024368,2]
[356676251,1742940704478,-200.0,0.00024377,120]
[356676252,1742940704487,-612.83933417,0.00024444,2]
[356676253,1742940704496,-29000.0,0.000245,29]
[356676254,1742940704506,-22005.08655428,0.000245,9]
[356676255,1742940704516,-2970.0,0.00024582,2]
[356676256,1742940704525,-200.0,0.00024611,120]
[356676257,1742940704535,-200.0,0.00024614,120]
[356676258,1742940704544,-150.0,0.00024657,2]
[356676259,1742940704554,-203.6252502,0.00024657,2]
[356676260,1742940704563,-500.0,0.00024657,2]
[356676261,1742940704572,-500.0,0.00024657,2]
[356676262,1742940704584,-565.83941012,0.00024657,2]
[356676263,1742940704594,-500.0,0.00024657,2]
[356676264,1742940704603,-500.0,0.00024657,2]
[356676265,1742940704612,-500.0,0.00024657,2]
[356676266,1742940704623,-1000.0,0.00024658,2]
[356676267,1742940704632,-1000.0,0.00024658,2]
[356676268,1742940704641,-1000.0,0.00024658,2]
[356676269,1742940704651,-523.0,0.00024658,2]
[356676270,1742940704662,-200.0,0.00024658,2]
[356676271,1742940704672,-972.7690566,0.00024658,4]
[356676272,1742940704681,-218.349159,0.00024658,5]
[356676273,1742940704691,-380.0,0.00024658,2]
[356676274,1742940704701,-1000.0,0.00024658,2]
[356676275,1742940704710,-222.7831,0.00024658,7]
[356676276,1742940704720,-222.7831,0.00024658,7]
[356676277,1742940704729,-222.7831,0.00024658,7]
[356676278,1742940704739,-222.7831,0.00024658,7]
[356676279,1742940704748,-222.7831,0.00024658,7]
[356676280,1742940704757,-222.7831,0.00024658,7]
[356676281,1742940704767,-222.7831,0.00024658,7]
[356676282,1742940704776,-222.7831,0.00024658,7]
[356676283,1742940704785,-222.7831,0.00024658,7]
[356676284,1742940704794,-222.7831,0.00024658,7]
[356676285,1742940704804,-222.7831,0.00024658,7]
[356676286,1742940704813,-222.7831,0.00024658,7]
[356676287,1742940704823,-222.7831,0.00024658,7]
[356676288,1742940704832,-222.7831,0.00024658,7]
[356676289,1742940704842,-222.7831,0.00024658,7]
[356676290,1742940704851,-222.7831,0.00024658,7]
[356676291,1742940704861,-222.7831,0.00024658,7]
[356676292,1742940704872,-222.7831,0.00024658,7]
[356676293,1742940704882,-222.7831,0.00024658,7]
[356676294,1742940704891,-222.783096,0.00024658,7]
[356676295,1742940704901,-800.0,0.000247,2]
[356676296,1742940704910,-91836.55003455,0.0002479,2]
[356676297,1742940704919,-1000.0,0.00024795,2]
[356676298,1742940704929,-1000.0,0.00024795,2]
[356676299,1742940704938,-1000.0,0.00024795,2]
[356676300,1742940704947,-401500.708445,0.000248,2]
[356676301,1742940704957,-736653.638253,0.000249,2]
[356676302,1742940704966,-374.78,0.000249,31]
[356676303,1742940704976,-374.78,0.000249,31]
[356676304,1742940704986,-374.78,0.000249,31]
[356676305,1742940704995,-374.78,0.000249,31]
[356676306,1742940705005,-374.78,0.000249,31]
[356676307,1742940705015,-374.78,0.000249,31]
[356676308,1742940705024,-374.78,0.000249,31]
[356676309,1742940705034,-374.78,0.000249,31]
[356676310,1742940705044,-374.78,0.000249,31]
[356676311,1742940705054,-374.78,0.000249,31]
[356676312,1742940705063,-374.78,0.000249,31]
[356676313,1742940705073,-374.78,0.000249,31]
[356676314,1742940705082,-374.78,0.000249,31]
[356676315,1742940705092,-374.78,0.000249,31]
[356676316,1742940705101,-374.78,0.000249,31]
[356676317,1742940705111,-374.78,0.000249,31]
[356676318,1742940705120,-374.78,0.000249,31]
[356676319,1742940705129,-374.78,0.000249,31]
[356676320,1742940705139,-374.78,0.000249,31]
[356676321,1742940705148,-374.78,0.000249,31]
[356676322,1742940705158,-374.78,0.000249,31]
[356676323,1742940705168,-374.78,0.000249,31]
[356676324,1742940705178,-374.78,0.000249,31]
[356676325,1742940705187,-374.78,0.000249,31]
[356676326,1742940705197,-1000.0,0.00024932,2]
[356676327,1742940705207,-1000.0,0.00024932,2]
[356676328,1742940705217,-1000.0,0.00024932,2]
[356676329,1742940705226,-3000.0,0.00024932,7]
[356676330,1742940705235,-36640.14996482,0.00024934,4]
[356676331,1742940705245,-1082.069059,0.0002498,5]
[356676332,1742940705255,-1051.56018745,0.00025,2]
[356676333,1742940705264,-2590.12893497,0.00025,2]
[356676334,1742940705274,-205.51009829,0.00025,2]
[356676335,1742940705283,-10364.0,0.00025,2]
[356676336,1742940705292,-836.56915316,0.00025,2]
[356676337,1742940705302,-14066.50785919,0.00025,4]
[356676338,1742940705311,-275.98626148,0.00025,7]
[356676339,1742940705320,-355.0,0.00025,120]
[356676340,1742940705329,-1009.01,0.00025,30]
[356676341,1742940705338,-1000.0,0.00025,5]
[356676342,1742940705348,-494.0,0.00025,11]
[356676343,1742940705357,-2000.0,0.00025,4]
[356676344,1742940705366,-200.0,0.00025008,120]
[356676345,1742940705376,-1000.0,0.00025068,2]
[356676346,1742940705385,-1000.0,0.00025068,2]
[356676347,1742940705394,-1000.0,0.00025205,2]
[356676348,1742940705403,-1000.0,0.00025205,2]
[356676349,1742940705412,-1000.0,0.00025342,2]
[356676350,1742940705422,-900.0,0.00025469,3]
[356676351,1742940705431,-1000.0,0.00025479,2]
[356676352,1742940705440,-449.0,0.000255,2]
[356676353,1742940705449,-36640.14996482,0.00025555,4]
[356676354,1742940705458,-5120.0,0.00025612,2]
[356676355,1742940705467,-1000.0,0.00025616,2]
[356676356,1742940705477,-200.0,0.0002562,120]
[356676357,1742940705487,-1000.0,0.00025753,2]
[356676358,1742940705496,-3000.0,0.00025754,7]
[356676359,1742940705505,-1000.0,0.0002589,2]
[356676360,1742940705514,-959.0,0.0002589,2]
[356676361,1742940705523,-515.22178741,0.00026,2]
[356676362,1742940705532,-19900.0,0.00026,2]
[356676363,1742940705541,-507.112317,0.00026,2]
[356676364,1742940705550,-2000.0,0.00026,4]
[356676365,1742940705559,-150.0,0.00026027,2]
[356676366,1742940705569,-36640.14996482,0.00026176,4]
[356676367,1742940705579,-1500.0,0.00026471,2]
[356676368,1742940705591,-1500.0,0.00026471,2]
[356676369,1742940705601,-1500.0,0.00026471,2]
[356676370,1742940705610,-1500.0,0.00026471,2]
[356676371,1742940705619,-1500.0,0.00026471,2]
[356676372,1742940705631,-273.28964769,0.00026471,2]
[356676373,1742940705640,-383.06858051,0.00026471,2]
[356676374,1742940705649,-1500.0,0.00026471,2]
[356676375,1742940705659,-1500.0,0.00026471,2]
[356676376,1742940705668,-1500.0,0.00026471,2]
[356676377,1742940705678,-1500.0,0.00026471,2]
[356676378,1742940705687,-1500.0,0.00026471,2]
[356676379,1742940705696,-1500.0,0.00026471,2]
[356676380,1742940705705,-1500.0,0.00026471,2]
[356676381,1742940705715,-1500.0,0.00026471,2]
[356676382,1742940705724,-1500.0,0.00026471,2]
[356676383,1742940705733,-1500.0,0.00026471,2]
[356676384,1742940705742,-1500.0,0.00026471,2]
[356676385,1742940705751,-1500.0,0.00026471,2]
[356676386,1742940705760,-1500.0,0.00026471,2]
[356676387,1742940705770,-494.0,0.000265,12]
[356676388,1742940705780,-500.0,0.000265,2]
[356676389,1742940705790,-200.0,0.00026575,120]
[356676390,1742940705799,-3000.0,0.00026576,7]
[356676391,1742940705809,-374.78,0.000266,31]
[356676392,1742940705818,-374.78,0.000266,31]
[356676393,1742940705827,-374.78,0.000266,31]
[356676394,1742940705836,-374.78,0.000266,31]
[356676395,1742940705845,-374.78,0.000266,31]
[356676396,1742940705854,-374.78,0.000266,31]
[356676397,1742940705864,-374.78,0.000266,31]
[356676398,1742940705873,-374.78,0.000266,31]
[356676399,1742940705882,-374.78,0.000266,31]
[356676400,1742940705892,-374.78,0.000266,31]
[356676401,1742940705901,-374.78,0.000266,31]
[356676402,1742940705910,-374.78,0.000266,31]
[356676403,1742940705920,-3531.58,0.000267,14]
[356676404,1742940705929,-36640.14996482,0.00026797,4]
[356676405,1742940705939,-754.89455395,0.00027,2]
[356676406,1742940705948,-3642.77390584,0.00027,2]
[356676407,1742940705958,-338.1531785,0.00027,2]
[356676408,1742940705967,-200.0,0.00027,120]
[356676409,1742940705977,-418.3522718,0.00027,7]
[356676410,1742940705986,-834.75273087,0.00027,3]
[356676411,1742940705996,-500.0,0.00027,2]
[356676412,1742940706005,-2000.0,0.00027,4]
[356676413,1742940706015,-1000.0,0.00027035,2]
[356676414,1742940706024,-300.0,0.00027035,2]
[356676415,1742940706034,-541.0,0.00027358,2]
[356676416,1742940706044,-1915.0,0.00027358,2]
[356676417,1742940706053,-2262.0,0.00027358,2]
[356676418,1742940706063,-400.0,0.00027368,2]
[356676419,1742940706073,-200.0,0.00027369,120]
[356676420,1742940706082,-760.59098775,0.00027397,2]
[356676421,1742940706091,-504.14322462,0.00027397,14]
[356676422,1742940706101,-150.0,0.00027397,2]
[356676423,1742940706232,-1000.0,0.00027397,5]
[356676424,1742940706242,-1000.0,0.00027397,5]
[356676425,1742940706252,-1000.0,0.00027397,5]
[356676426,1742940706262,-1000.0,0.00027397,5]
[356676427,1742940706272,-1000.0,0.00027397,5]
[356676428,1742940706281,-340.46804704,0.00027397,5]
[356676429,1742940706291,-161.70360101,0.00027397,2]
[356676430,1742940706301,-500.0,0.00027397,2]
[356676431,1742940706311,-500.0,0.00027397,2]
[356676432,1742940706320,-500.0,0.00027397,2]
[356676433,1742940706330,-500.0,0.00027397,2]
[356676434,1742940706339,-500.0,0.00027397,2]
[356676435,1742940706349,-500.0,0.00027397,2]
[356676436,1742940706358,-500.0,0.00027397,2]
[356676437,1742940706368,-508.52275899,0.00027397,2]
[356676438,1742940706378,-183.89519,0.00027397,120]
[356676439,1742940706387,-203.43021501,0.00027397,5]
[356676440,1742940706396,-3000.0,0.00027398,7]
[356676441,1742940706407,-36640.14996482,0.00027417,4]
[356676442,1742940706416,-44815.81621295,0.000275,2]
[356676443,1742940706425,-500.0,0.000275,2]
[356676444,1742940706434,-200.0,0.00027622,120]
[356676445,1742940706444,-200.0,0.00027663,120]
[356676446,1742940706453,-32322.31072315,0.0002799,2]
[356676447,1742940706462,-200.0,0.00028,120]
[356676448,1742940706471,-816.23162041,0.00028,2]
[356676449,1742940706482,-130893.40820201,0.00028,7]
[356676450,1742940706491,-160.0,0.00028,7]
[356676451,1742940706501,-160.0,0.00028,7]
[356676452,1742940706510,-418.3522718,0.00028,7]